Cogmind - Beta 14 @@@ ROGUE MODE // 2025.04.26 @ 10:19:25 Player: shockman27 Result: Destroyed by P-80 Master with Gamma Rifle Performance ------------- Evolutions (7) 3500 Regions Visited (17) 3400 Robots Destroyed (122) 610 Value Destroyed (2425) 2425 Prototype IDs (16) 320 Alien Tech Used (1) 200 Bonus (2484) 2484 TOTAL SCORE: 12939 Bonus ------- High Alert Combat Kills 109 Follower Combat Kills 875 Met Warlord at Base 500 MAIN.C Attacked Warlord 500 Scanned by Researcher 500 Cogmind --------- Core Integrity 0/1300 Matter 365/450 Energy 1/135 System Corruption 13% Temperature Danger (403) Movement Hovering (62) Location -3/Testing Parts ------- > --- POWER (2) -------- Compact Particle Reactor > --- PROPULSION (6) --- Gyrokinetic Inverter Gyrokinetic Inverter Gyrokinetic Inverter Combat Antigrav System > --- UTILITY (11) ----- Compact Matter Pod (fused) Machine Analyzer Spectral Analyzer Advanced Signal Interpreter > --- WEAPON (2) ------- Null Cannon Enhanced Coil Gun > --- INVENTORY (5) ---- Linear Gravjet Q-thruster Advanced Recalibrator Heavy Missile Launcher Peak State ------------ > --- POWER ------------ Light Particle Reactor Micro Antimatter Reactor > --- PROPULSION ------- Impulse Thruster Array Impulse Thruster Array Impulse Thruster Array > --- UTILITY ---------- Improved Cryofiber Web Compact Matter Pod Enhanced Optical Array Advanced Signal Interpreter Advanced Transmission Jammer ECM Suite Improved Reaction Control System Hacking Suite Long-range Tractor Beam > --- WEAPON ----------- Advanced Remote Datajack Heavy Flail > --- INVENTORY -------- Light Fission Core Micro Antimatter Reactor Biomechanical Wings Q-thruster Heavy Missile Launcher [Rating: 118] Favorites ----------- Power Reinforced Ion Engine Engine Reinforced Ion Engine Power Core Light Fission Core Reactor Micro Antimatter Reactor Propulsion Wheel Treads Light Treads Leg Improved VSS Leg Wheel Wheel Hover Unit Gyrokinetic Inverter Flight Unit Improved Flight Unit Utility High-capacity Storage Unit Device Seismic Detector Storage High-capacity Storage Unit Processor Enhanced Optical Array Hackware Hacking Suite Protection Heavy Armor Plating Weapon Mace Energy Gun Medium Laser Energy Cannon Beam Cannon Ballistic Gun Assault Rifle Launcher Grenade Launcher Special Weapon Mining Laser Impact Weapon Mace Build | -11 -10 -10 -9 -9 -8 -7 -7 -7 -6 -6 -5 -5 -5 -4 -4 -3 -3 ------- Run | Yrd Mat Min Mat Min Mat Fac Low Low Fac Ext Fac Upp War Pro Fac Res Tes Slots Evolved 14 | . . . 2 . 2 2 . . 2 . 2 . . . 2 2 . Power 1 | . . . . . . . . . . . 1 . . . . . . Propulsion 4 | . . . . . 2 1 . . 1 . . . . . . . . Utility 9 | . . . 2 . . 1 . . 1 . 1 . . . 2 2 . Weapon . | . . . . . . . . . . . . . . . . . . Parts Attached 208 | 10 20 3 49 11 11 6 1 . 11 4 10 2 5 8 15 20 22 Power 24 | 1 . 1 7 1 1 . . . 1 . 2 . . . 3 4 3 Engine 11 | 1 . 1 7 1 . . . . . . 1 . . . . . . Core 7 | . . . . . 1 . . . 1 . 1 . . . 3 1 . Reactor 6 | . . . . . . . . . . . . . . . . 3 3 Propulsion 59 | 4 9 . 10 2 4 4 . . 2 . 2 . . 1 10 2 9 Treads 8 | 2 2 . 4 . . . . . . . . . . . . . . Leg 6 | . . . . . . . . . . . . . . . 6 . . Wheel 17 | 2 7 . 6 2 . . . . . . . . . . . . . Hover 7 | . . . . . . . . . . . . . . . 1 . 6 Flight 21 | . . . . . 4 4 . . 2 . 2 . . 1 3 2 3 Utility 53 | 2 4 . 10 . 4 1 1 . 8 3 2 . 2 3 2 7 4 Device 25 | 1 2 . 2 . 1 . . . 3 3 2 . 1 2 2 4 2 Storage 5 | 1 1 . 1 . 1 . . . . . . . . . . 1 . Processor 7 | . 1 . 1 . . . . . 1 . . . . 1 . 1 2 Hackware 2 | . . . . . 1 . . . . . . . . . . 1 . Protection 14 | . . . 6 . 1 1 1 . 4 . . . 1 . . . . Artifact . | . . . . . . . . . . . . . . . . . . Weapon 72 | 3 7 2 22 8 2 1 . . . 1 4 2 3 4 . 7 6 Energy Gun 7 | 1 1 . 1 3 . . . . . . . . 1 . . . . Energy Cannon 12 | . 1 . 6 1 . 1 . . . . . . . . . . 3 Ballistic Gun 13 | 2 2 1 4 1 . . . . . . . . . . . . 3 Ballistic Cannon . | . . . . . . . . . . . . . . . . . . Launcher 13 | . . 1 3 1 2 . . . . 1 . 2 1 1 . 1 . Special Weapon 8 | . 3 . 1 . . . . . . . . . 1 1 . 2 . Impact Weapon 19 | . . . 7 2 . . . . . . 4 . . 2 . 4 . Slashing Weapon . | . . . . . . . . . . . . . . . . . . Piercing Weapon . | . . . . . . . . . . . . . . . . . . Special Melee Weapon . | . . . . . . . . . . . . . . . . . . Unidentified Prototypes 12 | . . . 1 . . . . . . . 1 . 2 1 1 . 6 Parts Lost 46 | . 3 . 8 . 1 . . . 1 . 1 1 . 13 . 14 4 Power 9 | . . . 2 . . . . . . . . . . 2 . 4 1 Propulsion 16 | . 2 . 2 . . . . . 1 . 1 . . 6 . 3 1 Utility 17 | . . . 3 . 1 . . . . . . 1 . 5 . 5 2 Weapon 4 | . 1 . 1 . . . . . . . . . . . . 2 . Highest Loss Streak 14 | . 1 . 7 . 1 . . . 1 . 1 1 . 9 . 14 3 To Critical Strikes 3 | . . . 2 . . . . . . . . . . . . 1 . Average Slot Usage (%) 81 | . 98 100 87 79 79 80 76 76 85 93 90 89 90 70 30 54 42 Engine 8 | . 14 14 10 11 2 . . . . . 1 . . . . . . Core 1 | . . . . . 6 7 7 7 6 6 9 11 11 9 4 . . Treads 2 | . . . 8 . . . . . . . . . . . . . . Wheel 14 | . 26 28 13 22 3 . . . . . . . . . . . . Flight 5 | . . . . . 30 38 38 38 40 40 35 35 35 27 1 11 . Device 11 | . 13 14 6 11 9 7 7 7 16 19 26 24 28 17 4 15 2 Storage 9 | . 14 14 11 11 9 7 7 7 6 6 5 5 5 4 . . 4 Processor 3 | . . . 5 . . . . . . 6 5 5 5 7 5 6 12 Protection 6 | . . . 11 11 2 7 7 7 8 6 2 . . . . . . Energy Gun 1 | . 10 . . . . . . . . . . . 1 . . . . Energy Cannon 3 | . 3 14 7 2 . 3 . . . . . . . . . . 2 Ballistic Gun 2 | . 8 6 3 . . . . . . . . . . . . . 2 Launcher 1 | . . 4 3 . 1 . . . . . . . . . . . . Impact Weapon 5 | . . . 6 9 9 7 7 7 6 6 3 5 1 . . 1 . Peak Build Rating 118 | 7 8 8 23 23 30 27 27 25 38 41 57 60 67 58 56 118 89 Average Rating 25 | 5 7 7 16 20 23 25 24 25 33 38 52 55 56 44 36 90 57 On Entrance 27 | . 7 7 8 22 21 21 24 25 25 38 38 57 54 58 7 56 20 Naked Turns . | . . . . . . . . . . . . . . . . . . Heaviest Build 73 | 14 20 22 73 73 66 23 19 19 26 24 30 30 30 29 10 38 33 Greatest Support 70 | 40 40 20 46 20 20 25 25 25 29 28 30 30 30 30 70 48 58 Greatest Overweight (x) 14 | 1 1 1 14 3 3 . . . . . . . . 1 2 . 4 Average Overweight (x) . | . . . 1 3 . . . . . . . . . . . . . Largest Inventory Capacity 20 | 8 10 10 20 20 20 10 10 10 10 10 10 10 10 10 5 5 5 Average Capacity 14 | 7 8 10 19 20 12 10 10 10 10 10 10 10 10 9 5 5 5 Most Carried 20 | 7 10 10 20 20 20 9 9 9 10 10 10 8 10 10 5 5 5 Average Carried 14 | 3 6 9 18 19 12 6 8 9 9 9 9 7 9 8 4 4 3 Final Capacity 20 | 8 10 10 20 20 10 10 10 10 10 10 10 10 10 5 5 5 5 Final Carried 20 | 7 7 10 19 20 10 7 9 9 10 10 8 8 10 5 5 4 4 Class Distribution -------------------- 48% | Scavenger-Mutant 34% | Mutant 8% | Sprinter 6% | Infiltrator-Sprinter Dominant Class ---------------- Mutant | -10/Materials Mutant | -10/Mines Scavenger-Mutant | -9/Materials Scavenger-Mutant | -9/Mines Sprinter | -8/Materials Sprinter | -7/Factory Sprinter | -7/Lower Caves Sprinter | -7/Lower Caves Sprinter | -6/Factory Sprinter | -6/Extension Infiltrator-Sprinter | -5/Factory Infiltrator-Sprinter | -5/Upper Caves Infiltrator-Sprinter | -5/Warlord Sprinter | -4/Proximity Caves Mutant | -4/Factory Mutant | -3/Research Mutant | -3/Testing Resources | -11 -10 -10 -9 -9 -8 -7 -7 -7 -6 -6 -5 -5 -5 -4 -4 -3 -3 ----------- Run | Yrd Mat Min Mat Min Mat Fac Low Low Fac Ext Fac Upp War Pro Fac Res Tes Matter Collected 3469 | 285 366 52 846 502 . . 69 . . 309 . 74 122 30 . 512 302 Remotely 680 | . . . . . . . . . . 279 . . . . . 401 . Salvage Created 3183 | 34 572 79 1342 490 25 . . . . 271 . 12 . 19 . 272 67 Parts 198 | 8 41 13 96 15 5 . . . . 4 . 3 . . . 8 5 Haulers Intercepted 7 | . 1 . 6 . . . . . . . . . . . . . . Recyclers Shooed 4 | 1 2 1 . . . . . . . . . . . . . . . Parts Field Recycled . | . . . . . . . . . . . . . . . . . . Retrieved Matter . | . . . . . . . . . . . . . . . . . . Parts Self-Destructed 4 | . . . . . . . 2 . . . . 1 . 1 . . . Prevented . | . . . . . . . . . . . . . . . . . . Kills | -11 -10 -10 -9 -9 -8 -7 -7 -7 -6 -6 -5 -5 -5 -4 -4 -3 -3 ------- Run | Yrd Mat Min Mat Min Mat Fac Low Low Fac Ext Fac Upp War Pro Fac Res Tes Combat Hostiles Destroyed 68 | . 14 7 28 4 3 . . . . 4 . 2 . 2 . 2 2 Melee 1 | . . . 1 . . . . . . . . . . . . . . Guns 23 | . 12 1 8 2 . . . . . . . . . . . . . Cannons 11 | . . . 7 2 . . . . . . . . . . . . 2 AOE 31 | . 2 6 11 . 3 . . . . 4 . 2 . 2 . 1 . Classes Destroyed 15 | 1 6 1 3 . . . . . . . . . . 2 . 2 . Worker 13 | . 4 . 2 4 . . . . . 1 . . . . . 1 1 Builder 9 | . . . 2 5 . . . . . 2 . . . . . . . Tunneler 7 | 2 . . . 5 . . . . . . . . . . . . . Hauler 7 | . 1 . 6 . . . . . . . . . . . . . . Recycler 5 | . . . 1 2 . . . . . 1 . . . . . 1 . Mechanic 1 | . . . . . . . . . . . . . . . . 1 . Operator 3 | . 2 . 1 . . . . . . . . . . . . . . Watcher 9 | . 3 . 4 . . . . . . 1 . . . . . 1 . Swarmer 38 | . 6 6 13 3 3 . . . . 4 . 2 . . . 1 . Grunt 16 | . 8 . 6 1 . . . . . . . . . . . . 1 Brawler 1 | . . . 1 . . . . . . . . . . . . . . Sentry 9 | . . 1 8 . . . . . . . . . . . . . . Hunter 1 | . . . . . . . . . . . . . . 1 . . . Programmer 2 | . . . . . . . . . . . . . . . . 1 1 Behemoth 1 | . . . . . . . . . . . . . . 1 . . . Best Kill Streak 7 | 1 7 3 7 3 2 . . . . 5 . 2 . 2 . 2 1 Combat Bots Only 6 | . 5 3 6 2 2 . . . . 4 . 2 . 2 . 1 1 Max Kills in Single Turn 5 | 1 3 3 5 2 1 . . . . 2 . 1 . 1 . 2 1 Gunslinging . | . . . . . . . . . . . . . . . . . . Exploded 4 | . 2 3 4 . 1 . . . . 2 . 1 . 1 . 1 . Melee 1 | . . . 1 . . . . . . . . . . . . . . Uniques/NPCs Destroyed . | . . . . . . . . . . . . . . . . . . Combat | -11 -10 -10 -9 -9 -8 -7 -7 -7 -6 -6 -5 -5 -5 -4 -4 -3 -3 -------- Run | Yrd Mat Min Mat Min Mat Fac Low Low Fac Ext Fac Upp War Pro Fac Res Tes Hostile Shots Fired 752 | . 69 7 131 22 26 1 2 . 9 17 4 30 . 120 2 192 120 Missed 332 | . 14 2 39 6 16 . 1 . 4 7 3 19 . 62 2 102 55 Damage Taken 7341 | . 588 54 1370 313 168 17 24 . 100 107 19 211 . 1282 . 1863 1225 Core 2579 | . 112 15 251 8 49 . 24 . . 63 . 25 . 721 . 725 586 Absorbed by Shields . | . . . . . . . . . . . . . . . . . . Redirected to Shielding 43 | . . . . . . . . . 37 6 . . . . . . . Regen/Repaired (Parts) 39 | . . . . . . . . . . . . . 39 . . . . Core Remaining (%) 73 | 100 . 49 . 35 91 . . 96 . 92 . . . 25 100 . . Volleys Fired 283 | 9 103 9 95 19 3 . . . . 2 . 2 . 5 . 7 29 Largest 2 | 2 2 2 2 2 1 . . . . 1 . 1 . 1 . 1 2 Hottest 160 | 70 100 80 133 133 30 . . . . 39 . 39 . 39 . 39 160 Shots Fired 475 | 18 184 15 160 35 3 . . . . 2 . 2 . 5 . 7 44 Gun 294 | 18 166 6 65 12 . . . . . . . . . . . . 27 Cannon 130 | . 9 6 80 18 . . . . . . . . . . . . 17 Launcher 27 | . . 3 10 5 3 . . . . 2 . 2 . 1 . 1 . Special 24 | . 9 . 5 . . . . . . . . . . 4 . 6 . Kinetic 174 | 9 73 6 59 . . . . . . . . . . . . . 27 Thermal 264 | 9 111 6 91 30 . . . . . . . . . . . . 17 Explosive 31 | . . 3 10 5 3 . . . . 2 . 2 . 5 . 1 . Electromagnetic . | . . . . . . . . . . . . . . . . . . Robot Hit Streak 16 | 2 9 4 16 3 1 . . . . 2 . . . 7 . 12 6 Robot Miss Streak 8 | 2 8 1 4 2 1 . . . . . . . . . . 1 4 Penetration Max 1 | . . . . . . . . . . . . . . . . . 1 Secondary Targets 1 | . 1 . . . . . . . . . . . . . . . . Max Gunslinging Chain 1 | . 1 . . . . . . . . . . . . . . . . Shots Hit Robots 308 | 10 99 10 106 35 1 . . . . 7 . . . 5 . 16 19 Core Hits 134 | 4 33 10 54 6 3 . . . . 3 . 1 . 7 . 5 8 Critical Kills 1 | . . . 1 . . . . . . . . . . . . . . Critical Parts Destroyed 5 | . . . 1 1 . . . . . 2 . . . . . . 1 Critical Strikes 16 | . 5 . 3 3 . . . . . 2 . . . 2 . . 1 Burn 8 | . 5 . 1 2 . . . . . . . . . . . . . Meltdown 1 | . . . 1 . . . . . . . . . . . . . . Destroy 1 | . . . . . . . . . . . . . . . . . 1 Smash 4 | . . . 1 1 . . . . . 2 . . . . . . . Sever 2 | . . . . . . . . . . . . . . 2 . . . Melee Attacks 106 | . . . 17 41 7 . . . . 12 6 . . 2 . 21 . Impact 106 | . . . 17 41 7 . . . . 12 6 . . 2 . 21 . Slashing . | . . . . . . . . . . . . . . . . . . Piercing . | . . . . . . . . . . . . . . . . . . Sneak Attacks 29 | . . . 2 21 . . . . . 3 . . . . . 3 . Combat Hostiles . | . . . . . . . . . . . . . . . . . . Follow-up Attacks . | . . . . . . . . . . . . . . . . . . Damage Inflicted 10536 | 106 1478 349 2755 1628 131 . . . . 655 . 221 . 1163 . 912 1138 Guns 2540 | 106 1114 64 705 111 . . . . . . . . . . . . 440 Cannons 2030 | . 89 72 1026 145 . . . . . . . . . . . . 698 Explosions 3058 | . 275 213 835 . 131 . . . . 309 . 221 . 979 . 95 . Melee 2724 | . . . 189 1372 . . . . . 346 . . . . . 817 . Ramming . | . . . . . . . . . . . . . . . . . . Kinetic 1567 | 55 395 64 613 . . . . . . . . . . . . . 440 Thermal 3737 | 51 1083 72 1577 256 . . . . . . . . . . . . 698 Explosive 2324 | . . 213 376 . 131 . . . . 309 . 221 . 979 . 95 . Electromagnetic . | . . . . . . . . . . . . . . . . . . Impact 2724 | . . . 189 1372 . . . . . 346 . . . . . 817 . Slashing 184 | . . . . . . . . . . . . . . 184 . . . Piercing . | . . . . . . . . . . . . . . . . . . Highest Corruption 26 | . . . 26 26 1 . . . . . 1 1 1 . . 11 13 Average Corruption 22 | . . . 25 26 1 . . . . . 1 1 1 . . 3 11 Corruption Purged . | . . . . . . . . . . . . . . . . . . Corruption Blocked . | . . . . . . . . . . . . . . . . . . Effects 271 | . . . 72 166 . . . . . . . 2 . . . 7 24 Message Errors 71 | . . . 17 48 . . . . . . . . . . . 3 3 Matter Fused 67 | . . . 16 40 . . . . . . . 1 . . . 3 7 Heat Flow Errors 35 | . . . 9 23 . . . . . . . 1 . . . . 2 Energy Discharges 32 | . . . 9 17 . . . . . . . . . . . 1 5 Parts Rejected 2 | . . . 2 . . . . . . . . . . . . . . Parts Fused 3 | . . . 2 . . . . . . . . . . . . . 1 Data Loss (minor) 33 | . . . 7 22 . . . . . . . . . . . . 4 Data Loss (major) 11 | . . . 3 7 . . . . . . . . . . . . 1 Misfires 7 | . . . 3 4 . . . . . . . . . . . . . Alerts 5 | . . . . 5 . . . . . . . . . . . . . Misdirections 1 | . . . . . . . . . . . . . . . . . 1 Weapon Failures 4 | . . . 4 . . . . . . . . . . . . . . Overload Shots . | . . . . . . . . . . . . . . . . . . Overflow Damage 1825 | . 47 . 326 694 . . . . . 254 . 65 . . . 286 153 Projectiles 169 | . . . 16 . . . . . . . . . . . . . 153 Explosions 401 | . 47 . 236 . . . . . . 53 . 65 . . . . . Melee 1255 | . . . 74 694 . . . . . 201 . . . . . 286 . Knockbacks 13 | . . . . 10 . . . . . 2 . . . . . 1 . Impact 13 | . . . . 10 . . . . . 2 . . . . . 1 . Kinetic . | . . . . . . . . . . . . . . . . . . Secondary . | . . . . . . . . . . . . . . . . . . Self-Inflicted Damage 85 | . 85 . . . . . . . . . . . . . . . . Shots 1 | . 1 . . . . . . . . . . . . . . . . Rammed . | . . . . . . . . . . . . . . . . . . Targets Rammed . | . . . . . . . . . . . . . . . . . . Kicked . | . . . . . . . . . . . . . . . . . . Crushed . | . . . . . . . . . . . . . . . . . . Highest Temperature 475 | 70 246 60 312 436 . 7 2 . 15 36 142 254 199 371 . . 475 Average Temperature 89 | 29 51 31 92 114 . 5 2 . 7 10 58 148 124 87 . . 140 Received Heat Transfer 1353 | . 126 6 318 48 27 9 9 . . 24 . 36 . 476 . 21 253 Effects 5 | . . . . 1 . . . . . . . . . . . . 4 Shutdowns 2 | . . . . . . . . . . . . . . . . . 2 Energy Bleed 1 | . . . . 1 . . . . . . . . . . . . . Interference 2 | . . . . . . . . . . . . . . . . . 2 Siege Activations . | . . . . . . . . . . . . . . . . . . Robots Corrupted 20 | . . . 2 11 . . . . . 4 . . . . . 3 . Combat Hostiles 1 | . . . . . . . . . . . . . . . . 1 . Parts Fried 46 | . . . 3 27 . . . . . 12 . . . . . 4 . Impact Corruptions 52 | . . . 2 30 . . . . . 10 . . . . . 10 . Robots Melted 1 | . . . 1 . . . . . . . . . . . . . . Combat Hostiles 1 | . . . 1 . . . . . . . . . . . . . . Parts Melted 15 | . 6 . 9 . . . . . . . . . . . . . . Heat Transferred 6744 | 148 2814 148 2618 666 . . . . . . . . . . . . 350 Parts Sabotaged . | . . . . . . . . . . . . . . . . . . Parts Stolen . | . . . . . . . . . . . . . . . . . . Parts Stripped . | . . . . . . . . . . . . . . . . . . Power Chain Reactions . | . . . . . . . . . . . . . . . . . . Alert | -11 -10 -10 -9 -9 -8 -7 -7 -7 -6 -6 -5 -5 -5 -4 -4 -3 -3 ------- Run | Yrd Mat Min Mat Min Mat Fac Low Low Fac Ext Fac Upp War Pro Fac Res Tes Peak Influence 614 | 10 207 206 614 323 236 102 . . 232 407 233 . . . 72 206 363 Initial 225 | . 6 50 79 225 5 102 . . 92 113 198 . . . 18 37 . Average 167 | 3 111 108 369 58 73 102 . . 135 265 217 . . . 36 97 136 Maximum Alert Level 2 | . 1 1 2 1 1 . . . 1 2 1 . . . . 1 1 Low Security (%) 69 | 100 88 90 29 89 82 100 . . 81 24 21 . . . 100 91 77 Level 1 13 | . 11 9 9 10 17 . . . 18 75 78 . . . . 8 22 Level 2 16 | . . . 60 . . . . . . . . . . . . . . Level 3 . | . . . . . . . . . . . . . . . . . . Level 4 . | . . . . . . . . . . . . . . . . . . Level 5 . | . . . . . . . . . . . . . . . . . . High Security . | . . . . . . . . . . . . . . . . . . Max Security . | . . . . . . . . . . . . . . . . . . Squads Dispatched 27 | . 6 . 6 . 1 . . . 1 2 . . . . . 5 6 Investigation 11 | . 4 . 3 . . . . . 1 1 . . . . . 2 . Extermination 1 | . . . . . . . . . . . . . . . . . 1 Reinforcement 15 | . 2 . 3 . 1 . . . . 1 . . . . . 3 5 Assault . | . . . . . . . . . . . . . . . . . . Garrison . | . . . . . . . . . . . . . . . . . . Intercept . | . . . . . . . . . . . . . . . . . . Searches Triggered . | . . . . . . . . . . . . . . . . . . Construction Impeded 1 | . . . . . . . . . . . . . . . . . 1 Haulers Reinforced 2 | . . . . . . . . . . . . . . . . 1 1 Active Scanning Responses . | . . . . . . . . . . . . . . . . . . Cargo Convoy Interrupts 1 | . . . . . . . . . . . . . . . . 1 . Stealth | -11 -10 -10 -9 -9 -8 -7 -7 -7 -6 -6 -5 -5 -5 -4 -4 -3 -3 --------- Run | Yrd Mat Min Mat Min Mat Fac Low Low Fac Ext Fac Upp War Pro Fac Res Tes Distress Signals 12 | . 3 . 4 1 . . . . 2 1 . . . . 1 . . Communications Jammed 19 | . . . . . . . . . . . . . . . . 19 . Distress Signals 15 | . . . . . . . . . . . . . . . . 15 . Times Spotted 207 | . 24 9 39 10 10 2 8 . 5 11 3 5 1 17 4 31 28 Peak Tracking Total 16 | . 3 3 5 3 7 4 9 . 9 4 3 5 1 6 3 16 5 Tactical Retreats 24 | . 1 . 2 2 1 . 4 . 3 1 . 1 . 3 . 4 2 Traps | -11 -10 -10 -9 -9 -8 -7 -7 -7 -6 -6 -5 -5 -5 -4 -4 -3 -3 ------- Run | Yrd Mat Min Mat Min Mat Fac Low Low Fac Ext Fac Upp War Pro Fac Res Tes Traps Triggered 4 | . 2 . 1 . . . . . 1 . . . . . . . . Indirectly . | . . . . . . . . . . . . . . . . . . Trap Hack Attempts . | . . . . . . . . . . . . . . . . . . Triggered . | . . . . . . . . . . . . . . . . . . Disarmed . | . . . . . . . . . . . . . . . . . . Reprogrammed . | . . . . . . . . . . . . . . . . . . Reused . | . . . . . . . . . . . . . . . . . . Traps Extracted . | . . . . . . . . . . . . . . . . . . Installed . | . . . . . . . . . . . . . . . . . . Triggered 8 | . . . . . . . . . . . . . 8 . . . . Machines | -11 -10 -10 -9 -9 -8 -7 -7 -7 -6 -6 -5 -5 -5 -4 -4 -3 -3 ---------- Run | Yrd Mat Min Mat Min Mat Fac Low Low Fac Ext Fac Upp War Pro Fac Res Tes Machines Disabled 19 | . 1 1 6 1 3 . . . . 3 . . . 1 . . 3 Max in Single Turn 2 | . 1 1 2 1 2 . . . . 1 . . . 1 . . 1 Machines Repaired . | . . . . . . . . . . . . . . . . . . Machines Dismantled . | . . . . . . . . . . . . . . . . . . Machines Sabotaged . | . . . . . . . . . . . . . . . . . . Overloaded Fab Kills . | . . . . . . . . . . . . . . . . . . Hacking | -11 -10 -10 -9 -9 -8 -7 -7 -7 -6 -6 -5 -5 -5 -4 -4 -3 -3 --------- Run | Yrd Mat Min Mat Min Mat Fac Low Low Fac Ext Fac Upp War Pro Fac Res Tes Machines Accessed 49 | . 7 . 10 . 1 . . . 2 9 1 . 8 1 1 8 1 Terminals 33 | . 5 . 7 . 1 . . . 2 9 1 . . . 1 6 1 Fabricators 1 | . . . . . . . . . . . . . . . . 1 . Repair Stations . | . . . . . . . . . . . . . . . . . . Recycling Units 4 | . 2 . 1 . . . . . . . . . . . . 1 . Scanalyzers 2 | . . . 2 . . . . . . . . . . . . . . Garrison Access . | . . . . . . . . . . . . . . . . . . Total Hacks 126 | . 19 . 34 . 1 . . . 3 18 2 . 20 1 4 22 2 Successful 73 | . 8 . 19 . 1 . . . 1 9 1 . 20 1 1 11 1 Failed 53 | . 11 . 15 . . . . . 2 9 1 . . . 3 11 1 Catastrophic 11 | . 2 . 5 . . . . . 1 . 1 . . . . 2 . Database Lockouts . | . . . . . . . . . . . . . . . . . . Manual 29 | . 11 . 9 . 1 . . . 2 . 1 . . . 3 2 . Terminals 85 | . 17 . 21 . 1 . . . 3 18 2 . . . 4 17 2 Fabricators 1 | . . . . . . . . . . . . . . . . 1 . Repair Stations . | . . . . . . . . . . . . . . . . . . Recycling Units 7 | . 2 . 1 . . . . . . . . . . . . 4 . Scanalyzers 12 | . . . 12 . . . . . . . . . . . . . . Garrison Access . | . . . . . . . . . . . . . . . . . . Terminal Hacks 58 | . 6 . 7 . 1 . . . 1 9 1 . 20 1 1 10 1 Record 27 | . . . . . . . . . . 3 1 . 18 1 . 4 . Robot Analysis 4 | . 2 . 1 . . . . . . . . . . . . 1 . Prototype ID Bank 2 | . 1 . 1 . . . . . . . . . . . . . . Open Door 9 | . . . . . . . . . 1 6 . . 2 . . . . Open DSF 1 | . . . . . . . . . . . . . . . . 1 . Level Access Points 2 | . . . . . 1 . . . . . . . . . 1 . . Branch Access Points 2 | . . . 1 . . . . . . . . . . . . 1 . Emergency Access Points 2 | . . . . . . . . . . . . . . . . 1 1 Unreport Threat 1 | . 1 . . . . . . . . . . . . . . . . Locate Traps 6 | . 1 . 3 . . . . . . . . . . . . 2 . Recall Reinforcements 1 | . . . 1 . . . . . . . . . . . . . . Zone Layout 1 | . 1 . . . . . . . . . . . . . . . . Fabricator Hacks . | . . . . . . . . . . . . . . . . . . Repair Station Hacks . | . . . . . . . . . . . . . . . . . . Recycling Unit Hacks 2 | . . . 1 . . . . . . . . . . . . 1 . Process 1 | . . . . . . . . . . . . . . . . 1 . Report Inventory 1 | . . . 1 . . . . . . . . . . . . . . Scanalyzer 11 | . . . 11 . . . . . . . . . . . . . . Insert Component 6 | . . . 6 . . . . . . . . . . . . . . Analyze 5 | . . . 5 . . . . . . . . . . . . . . Garrison Access Hacks . | . . . . . . . . . . . . . . . . . . Unauthorized Hacks 2 | . 2 . . . . . . . . . . . . . . . . Terminals . | . . . . . . . . . . . . . . . . . . Fabricators . | . . . . . . . . . . . . . . . . . . Repair Stations . | . . . . . . . . . . . . . . . . . . Recycling Units 2 | . 2 . . . . . . . . . . . . . . . . Tunnel 2 | . 2 . . . . . . . . . . . . . . . . Scanalyzers . | . . . . . . . . . . . . . . . . . . Garrison Access . | . . . . . . . . . . . . . . . . . . Data Cores Recovered . | . . . . . . . . . . . . . . . . . . Used . | . . . . . . . . . . . . . . . . . . Hacking Detections 27 | . 5 . 9 . . . . . 1 3 1 . . . 1 6 1 Full Trace Events 6 | . . . 2 . . . . . 1 1 . . . . . 2 . Feedback Events . | . . . . . . . . . . . . . . . . . . Feedback Blocked . | . . . . . . . . . . . . . . . . . . Robot Schematics Acquired . | . . . . . . . . . . . . . . . . . . Robots Built . | . . . . . . . . . . . . . . . . . . Authchips . | . . . . . . . . . . . . . . . . . . Time . | . . . . . . . . . . . . . . . . . . Total Robot Build Rating . | . . . . . . . . . . . . . . . . . . Part Schematics Acquired 4 | . . . 4 . . . . . . . . . . . . . . Parts Built . | . . . . . . . . . . . . . . . . . . Authchips . | . . . . . . . . . . . . . . . . . . Time . | . . . . . . . . . . . . . . . . . . Total Part Build Rating . | . . . . . . . . . . . . . . . . . . Parts Repaired . | . . . . . . . . . . . . . . . . . . Time . | . . . . . . . . . . . . . . . . . . Parts Recycled . | . . . . . . . . . . . . . . . . . . Recycled Matter 60 | . . . . . . . . . . . . . . . . 60 . Retrieved Matter . | . . . . . . . . . . . . . . . . . . Retrieved Components . | . . . . . . . . . . . . . . . . . . Parts Scanalyzed 4 | . . . 4 . . . . . . . . . . . . . . Part Schematics Acquired 4 | . . . 4 . . . . . . . . . . . . . . Parts Damaged . | . . . . . . . . . . . . . . . . . . Bothacking | -11 -10 -10 -9 -9 -8 -7 -7 -7 -6 -6 -5 -5 -5 -4 -4 -3 -3 ------------ Run | Yrd Mat Min Mat Min Mat Fac Low Low Fac Ext Fac Upp War Pro Fac Res Tes Used RIF Installer . | . . . . . . . . . . . . . . . . . . Robots Hacked 4 | . . . . . . . . . . . . . . . . 4 . Non-combat 4 | . . . . . . . . . . . . . . . . 4 . Combat . | . . . . . . . . . . . . . . . . . . Robot Hacks Applied 5 | . . . . . . . . . . . . . . . . 5 . parse_system 1 | . . . . . . . . . . . . . . . . 1 . no_distress 2 | . . . . . . . . . . . . . . . . 2 . find_dsf 1 | . . . . . . . . . . . . . . . . 1 . check_alert 1 | . . . . . . . . . . . . . . . . 1 . Relay Couplers Released . | . . . . . . . . . . . . . . . . . . Fabnet Peak Effective % . | . . . . . . . . . . . . . . . . . . Robots Rewired 1 | . . . . . . . . . . . . . . . . . 1 Allies Hacked . | . . . . . . . . . . . . . . . . . . Hacks Repelled . | . . . . . . . . . . . . . . . . . . Allies | -11 -10 -10 -9 -9 -8 -7 -7 -7 -6 -6 -5 -5 -5 -4 -4 -3 -3 -------- Run | Yrd Mat Min Mat Min Mat Fac Low Low Fac Ext Fac Upp War Pro Fac Res Tes Total Allies 15 | . . 5 . 1 . . . . . 8 . . . . . . 1 Largest Group 6 | . . 5 4 1 . . . . . 6 . . . . . . 1 Highest-Rated Group 183 | . . 83 71 31 . . . . . 183 . . . . . . 152 Highest-Rated Ally 152 | . . 31 31 31 . . . . . 39 . . . . . . 152 Total Orders . | . . . . . . . . . . . . . . . . . . Ally Attacks 90 | . . 19 11 8 . . . . . 26 . . . . . . 26 Total Damage 2886 | . . 195 164 106 . . . . . 586 . . . . . . 1835 Kills 24 | . . 2 4 2 . . . . . 3 . . . . . . 13 Allies Corrupted . | . . . . . . . . . . . . . . . . . . Allies Melted 1 | . . . . . . . . . . 1 . . . . . . . Intel | -11 -10 -10 -9 -9 -8 -7 -7 -7 -6 -6 -5 -5 -5 -4 -4 -3 -3 ------- Run | Yrd Mat Min Mat Min Mat Fac Low Low Fac Ext Fac Upp War Pro Fac Res Tes Robot Analysis Total 4 | . 2 . 1 . . . . . . . . . . . . 1 . Derelict Logs Recovered 6 | . . 1 . 1 . . 1 . . . . . . 3 . . . Drone Launches . | . . . . . . . . . . . . . . . . . . Drone Recoveries . | . . . . . . . . . . . . . . . . . . Exploration | -11 -10 -10 -9 -9 -8 -7 -7 -7 -6 -6 -5 -5 -5 -4 -4 -3 -3 ------------- Run | Yrd Mat Min Mat Min Mat Fac Low Low Fac Ext Fac Upp War Pro Fac Res Tes Turns Passed 11871 | 157 1294 612 2977 3709 122 59 137 9 122 316 145 140 450 343 265 491 523 Spaces Moved 13401 | 94 1151 619 1650 2673 204 175 477 31 358 834 423 553 1364 937 329 995 534 Core 211 | 2 . . 4 . . . . . . . . . . 12 27 15 151 Treads 496 | 38 14 . 444 . . . . . . . . . . . . . . Legs 144 | . . . . . . . . . . . . . . . 144 . . Wheels 5700 | 54 1137 619 1202 2673 15 . . . . . . . . . . . . Hover 451 | . . . . . . . . . . . . . . . 74 . 377 Flight 6399 | . . . . . 189 175 477 31 358 834 423 553 1364 925 84 980 6 Fastest Speed 24 | 50 80 80 80 125 31 28 28 28 25 25 24 24 24 24 40 37 37 Average Speed 73 | 112 81 90 152 125 37 28 28 28 26 25 24 24 24 29 70 39 60 Slowest Speed 750 | 160 160 95 750 125 125 28 28 28 28 25 25 24 24 107 150 50 250 Overloaded Moves . | . . . . . . . . . . . . . . . . . . Propulsion Burnouts . | . . . . . . . . . . . . . . . . . . Robots Hopped 42 | . . . . . 2 4 . . 2 19 . 3 4 . . 7 1 Cave-ins Triggered 2 | . . . . 1 1 . . . . . . . . . . . . Exploration Rate (%) 49 | 5 96 98 86 101 20 5 64 9 14 52 14 62 96 95 9 28 45 Regions Visited 17 Branch Regions 9 Pre-discovered Areas 3 | . 2 . . . . . . . . . . . . 1 . . . Known Exits Taken 4 | . . . 1 . 1 . . . . . . . . . 1 1 . Unknown Exits Taken 13 | 1 1 1 . 1 . 1 1 1 1 1 1 1 1 1 . . . Scrap Searched 10 | . . 1 . 3 . . 1 . . . . 2 . 3 . . . Spaces Dug 59 | . 8 . 12 18 6 . . . . 1 6 . . 1 . 6 1 Terrain Destroyed 321 | . 35 16 93 47 20 . . . . 37 6 13 . 32 . 13 9 Melee 37 | . . . 7 10 6 . . . . 1 6 . . 1 . 6 . Projectile 22 | . 8 . 5 . . . . . . . . . . . . . 9 AOE 262 | . 27 16 81 37 14 . . . . 36 . 13 . 31 . 7 . Terrain Rammed . | . . . . . . . . . . . . . . . . . . Walls Destroyed . | . . . . . . . . . . . . . . . . . . Machines Disabled . | . . . . . . . . . . . . . . . . . . Actions | -11 -10 -10 -9 -9 -8 -7 -7 -7 -6 -6 -5 -5 -5 -4 -4 -3 -3 --------- Run | Yrd Mat Min Mat Min Mat Fac Low Low Fac Ext Fac Upp War Pro Fac Res Tes Total 14735 | 124 1314 654 1905 2940 236 180 479 30 380 898 458 555 1486 1000 361 1046 689 Wait 561 | 5 19 16 47 179 . . . . 7 62 8 . 106 32 4 1 75 Move 13310 | 93 1150 618 1649 2672 199 166 476 30 353 804 422 546 1357 936 328 979 532 Hop 31 | . . . . . 2 4 . . 2 10 . 3 2 . . 7 1 Pick Up 69 | 7 9 5 24 6 . 1 1 . 2 . 3 . 2 3 2 3 1 Fast Attach 77 | 7 3 1 8 1 1 . 1 . 5 2 3 . 5 4 12 11 13 Attach 61 | . 3 . 10 2 8 3 . . 3 1 6 2 . 5 3 6 9 Detach 53 | . 2 . 3 3 6 1 1 . 3 2 4 2 5 4 3 3 11 Swap 71 | 3 14 2 31 8 2 3 . . 3 1 1 . . . . 3 . Drop 96 | . 11 3 21 9 8 2 . . 2 2 5 . 9 9 9 4 2 Fire 283 | 9 103 9 95 19 3 . . . . 2 . 2 . 5 . 7 29 Melee 106 | . . . 17 41 7 . . . . 12 6 . . 2 . 21 . Ram . | . . . . . . . . . . . . . . . . . . Kick . | . . . . . . . . . . . . . . . . . . Crush . | . . . . . . . . . . . . . . . . . . Escape Stasis 2 | . . . . . . . . . . . . . . . . 1 1 Rewire 15 | . . . . . . . . . . . . . . . . . 15 Trap . | . . . . . . . . . . . . . . . . . . Miscellaneous . | . . . . . . . . . . . . . . . . . . Route ------- -11/Scrapyard -10/Materials (discovered 5 exits: *Mat x3 / [*Min] / [*Sub]) -10/Mines (discovered 2 exits: *Mat x2) -9/Materials (discovered 4 exits: *Mat x2 / *Min x2) -9/Mines (discovered 3 exits: *Mat x2 / [*Exi]) -8/Materials (discovered 3 exits: *Fac x3) -7/Factory -7/Lower Caves -7/Lower Caves -6/Factory -6/Extension -5/Factory -5/Upper Caves -5/Warlord -4/Proximity Caves -4/Factory (discovered 5 exits: *Res x4 / Arm) -3/Research (discovered 2 exits: *Tes x2) -3/Testing History --------- Turn | Location | Event 11 | -11/Scrapyard | Discovered new exit (range 16) 158 | -11/Scrapyard | Entered Materials 301 | -10/Materials | Build established: Mutant 309 | -10/Materials | Discovered new exit (range 7) 367 | -10/Materials | Discovered new exit (range 4) 658 | -10/Materials | Derelicts attacked the area 1068 | -10/Materials | Discovered new exit (range 9) 1318 | -10/Materials | Discovered new exit (range 4) 1415 | -10/Materials | Discovered new exit (range 9) 1452 | -10/Materials | Entered Mines 1473 | -10/Mines | Assisted by bots powering up and referring to "LRC-V3" 1486 | -10/Mines | Build established: Scavenger-Mutant 1622 | -10/Mines | Joined a pair of Derelicts in attacking an 0b10 outpost 1752 | -10/Mines | Learned Materials stockpile data 1871 | -10/Mines | Core integrity fell below 50% 1888 | -10/Mines | Build established: Mutant 1922 | -10/Mines | Discovered new exit (range 14) 1935 | -10/Mines | Discovered new exit (range 9) 2064 | -10/Mines | Entered Materials 2064 | -9/Materials | Accompanied by 4 allies 2064 | -9/Materials | Evolved 2 slots: Utility x2 2069 | -9/Materials | Led the pair of lost Derelicts to an unsafe place 2176 | -9/Materials | Lost 3 allies 2336 | -9/Materials | Build established: Scavenger-Mutant 2714 | -9/Materials | Identified exit to Mines 2774 | -9/Materials | Build established: Mutant 3343 | -9/Materials | Discovered new exit (range 8) 3531 | -9/Materials | System corruption reached 10% 3584 | -9/Materials | Core integrity fell below 50% 3618 | -9/Materials | Lost 7 parts (2p2n2u1w) 4181 | -9/Materials | Build established: Scavenger-Mutant 4783 | -9/Materials | Discovered new exit (range 16) 5041 | -9/Materials | Entered Mines 5089 | -9/Mines | Assembled infested the area 5300 | -9/Mines | Crushed by falling debris 5395 | -9/Mines | Discovered new exit (range 7) 5621 | -9/Mines | YI-UF0 nonchalantly dropped a Grenade Launcher on the ground 5733 | -9/Mines | Learned Materials terminal intel 5958 | -9/Mines | Discovered new exit (range 5) 6065 | -9/Mines | Received a Mining Laser from a helpful Derelict 6171 | -9/Mines | Discovered new exit (range 5) 8750 | -9/Mines | Entered Materials 8750 | -8/Materials | Evolved 2 slots: Propulsion x2 8751 | -8/Materials | Loaded intel: 11 terminal locations 8813 | -8/Materials | Identified exit to Factory 8861 | -8/Materials | Crushed by falling debris 8872 | -8/Materials | Entered Factory 8872 | -7/Factory | Evolved 2 slots: Propulsion x1, Utility x1 8924 | -7/Factory | Discovered new exit (range 14) 8931 | -7/Factory | Entered Lower Caves 8943 | -7/Lower Caves | Attracted the attention of an 0b10 outpost 8969 | -7/Lower Caves | Learned Factory non-interactive machine intel 8991 | -7/Lower Caves | Encountered a Warlord checkpoint 9010 | -7/Lower Caves | Spotted B-75 Beast 9063 | -7/Lower Caves | Discovered new exit (range 14) 9068 | -7/Lower Caves | Entered another Lower Caves area 9071 | -7/Lower Caves | Build established: Sprinter 9074 | -7/Lower Caves | Discovered new exit (range 10) 9077 | -7/Lower Caves | Entered Factory 9077 | -6/Factory | Evolved 2 slots: Propulsion x1, Utility x1 9078 | -6/Factory | Loaded intel: 205 non-interactive machine locations 9154 | -6/Factory | Spotted B-75 Beast 9198 | -6/Factory | Discovered new exit (range 5) 9199 | -6/Factory | Entered Extension 9251 | -6/Extension | Rescued a captive Derelict 9252 | -6/Extension | Rescued a captive Derelict 9258 | -6/Extension | Rescued a captive Derelict 9259 | -6/Extension | Rescued a captive Derelict 9286 | -6/Extension | Rescued a captive Derelict 9301 | -6/Extension | Rescued a captive Derelict 9375 | -6/Extension | Spotted B-75 Beast 9387 | -6/Extension | Lost 3 allies 9442 | -6/Extension | Rescued a captive Derelict 9442 | -6/Extension | Rescued a captive Derelict 9472 | -6/Extension | Disrupted transfer network 9496 | -6/Extension | Spotted B-75 Beast 9514 | -6/Extension | Discovered new exit (range 3) 9515 | -6/Extension | Entered Factory 9515 | -5/Factory | Evolved 2 slots: Power x1, Utility x1 9659 | -5/Factory | Discovered new exit (range 4) 9660 | -5/Factory | Entered Upper Caves 9679 | -5/Upper Caves | Spotted B-75 Beast 9704 | -5/Upper Caves | Attracted the attention of an 0b10 checkpoint 9800 | -5/Upper Caves | A Derelict revealed a hidden shortcut to "reach the base" 9800 | -5/Upper Caves | Entered Warlord 9811 | -5/Warlord | System corruption cleaned by Quarantine Array 9883 | -5/Warlord | Build established: Infiltrator-Sprinter 9909 | -5/Warlord | Learned Armory security intel 9909 | -5/Warlord | Learned Factory terminal intel 9909 | -5/Warlord | Learned Research recycling unit intel 9909 | -5/Warlord | Learned 4 Armory zone layouts 9910 | -5/Warlord | Learned Testing trap positions 9910 | -5/Warlord | Learned Testing stockpile data 9944 | -5/Warlord | Visited the Vortex Lab 9947 | -5/Warlord | Found Prototype Energy Gun 9947 | -5/Warlord | Identified Vortex Shotgun 9952 | -5/Warlord | Warlord's base attacked by MAIN.C 9969 | -5/Warlord | Met Warlord 9990 | -5/Warlord | Found Prototype Special Weapon 9990 | -5/Warlord | Identified RU-N14's Throwing Claymores v3 10002 | -5/Warlord | Found Signal Generator 10228 | -5/Warlord | Opened side exit 10240 | -5/Warlord | Discovered new exit (range 15) 10250 | -5/Warlord | Entered Proximity Caves 10270 | -4/Proximity Caves | Learned Research garrison access intel 10281 | -4/Proximity Caves | Found DCF Scrap (11 items) 10301 | -4/Proximity Caves | Found Alien Artifact 10301 | -4/Proximity Caves | Identified Dimensional Node Initializer 10301 | -4/Proximity Caves | Initialized slip node 10422 | -4/Proximity Caves | Learned location of Testing (-3) 10480 | -4/Proximity Caves | Spotted B-86 Titan 10526 | -4/Proximity Caves | Destroyed B-86 Titan 10549 | -4/Proximity Caves | Core integrity fell below 50% 10551 | -4/Proximity Caves | Lost 9 parts (1p5n3u) 10584 | -4/Proximity Caves | Discovered new exit (range 14) 10593 | -4/Proximity Caves | Entered Factory 10593 | -4/Factory | Evolved 2 slots: Utility x2 10594 | -4/Factory | Identified exit to Armory 10595 | -4/Factory | Loaded intel: 25 terminal locations 10622 | -4/Factory | Lost 4 parts (1p1n2u) 10623 | -4/Factory | Identified exit to Research 10786 | -4/Factory | Build established: Mutant 10858 | -4/Factory | Entered Research 10858 | -3/Research | Evolved 2 slots: Utility x2 10859 | -3/Research | Identified exit to Testing 10860 | -3/Research | Loaded intel: 4 recycling unit locations 10861 | -3/Research | Loaded intel: 4 garrison access locations 11070 | -3/Research | Spotted B-86 Titan 11321 | -3/Research | Cargo convoy interrupted 11321 | -3/Research | Spotted Executioner 11321 | -3/Research | Spotted Striker 11342 | -3/Research | System corruption reached 10% 11343 | -3/Research | Core integrity fell below 50% 11349 | -3/Research | Entered Testing 11350 | -3/Testing | Loaded intel: 15 trap records 11376 | -3/Testing | Lost 14 parts (4p3n5u2w) 11416 | -3/Testing | Found Prototype Energy Cannon 11416 | -3/Testing | Identified Null Cannon 11488 | -3/Testing | Lost 3 parts (1p1n1u) 11514 | -3/Testing | Core integrity fell below 20% 11637 | -3/Testing | Spotted PG-5JNM7R7WMQ 11662 | -3/Testing | Rewired PG-5JNM7R7WMQ 11789 | -3/Testing | Found Prototype Processor 11789 | -3/Testing | Identified Spectral Analyzer 11842 | -3/Testing | Scanned by Researcher 11872 | -3/Testing | Destroyed by P-80 Master with Gamma Rifle Last Messages --------------- 11852_ U-05 Engineer builds a Wall. 11852_ Held in stasis. 11852_ C-55 Analyst is analyzing... 11856_ Imp. Phase Shifter destroyed. 11856_ P-80 Master held in stasis. 11859_ Destroyed Imp. Antigrav System. 11859_ Destroyed Gamma Rifle. 11859_ Slug penetrates P-80 Master. 11859_ Slug penetrates U-05 Engineer. 11859_ ALERT: Construction progress impeded, dispatching reinforcements to local area. 11860_ Held in stasis. 11860_ C-55 Analyst is analyzing... 11862_ P-80 Master destroyed. 11862_ Slug penetrates Wall. 11864_ Held in stasis. 11864_ C-55 Analyst is analyzing... 11865_ Destroyed Imp. Antigrav System. 11872_ Slug penetrates Wall. 11872_ Held in stasis. Map ----- +----------------------------------------------------+ | ?????????????????????????????????????????????????? | | ?????????????????????????????????????????????????? | | ???????????????????????? ???????????????????????? | | ???????????????????????? ???????????????????????? | | ???????????????????????? ?????#?????????????????? | | ???????????????????????? ???^? ?????????????????? | | ???????????????????????? ????? ?????????????????? | | ???????????????????????? ???? """???????????????? | | ???????????????"""""???? ???? """???????????????? | | ???????????????"""""???? ???? """???????????????? | | ???????????????"""""???? ???? """???????????????? | | ???????????????"""""???? ??? """???????????????? | | ???????????????????????? ??^ """???????????????? | | ???????????????????????? #??^ """???????????????? | | ???????????????????????? +? ??????????????????? | | ???????????????????????? #? ! ??????????????????? | | ???????????????????????? #? ???????????????????? | | ???????????????????????? # ?^?????????????????? | | ???????????????????????? + ????????????????????? | | ????????????????????????# # ????????????????????? | | ?????????????????###+#??# # ?????????????????????? | | ?????????????????#! ?# ; ?""T""???????????????? | | ?????#######??????? !# ;??"""""???????????????? | | ????? ???????"T" # #??????????????????????? | | ???? """" ??????"""? c%#??????????????????????? | | ???? """" !!???#########@#??????????????????????? | | ???? """" !! ??+ pp#??????????????????????? | | ???# """" !] ??# ####p######?????????????????? | | ???# ?# # #?????????????????? | | ?????"""" """ # # #?????????????????? | | ?????"""" """ + # #?????????????????? | | ???# """" """ # # #?????????????????? | | ???# """" + + h #?????????????????? | | ???# ! # # = #?????????????????? | | ???# # # = #?????????????????? | | ???############## # #?????????????????? | | ??? ?????# ###""T""###?????????????????? | | ?? ?????# #?#"""""#???????????????????? | | ??????# #?#######???????????????????? | | ???????# #???????????????????????????? | | #????????# ####+#########?????????????????????? | | #?# ?????# # #?????????????????????? | | #?# ### ?# """ """ #?????????????????????? | | #?# ??# """ """ #?????????????????????? | | #?# # """ """ #?????????????????????? | | #?# / #?????????????????????? | | #?# # """ """ #?????????????????????? | | ??######## # """ """ #?????????????????????? | | ?????????# ?# """ """ #?????????????????????? | | ?"""?????# ??# #?????????????????????? | +----------------------------------------------------+ Best States ------------- Heat Dissipation 46 Coolant Potential 65 Energy Generation 37 Energy Capacity 280 Matter Stores 450 Matter Capacity 450 Sight Range 24 Robot Scan Range 15 Terrain Scan Density 10 ECM Strength 1 Jamming Range 16 Base Temperature (-) 150 Armor Coverage 750 Propulsion Shielding 66 Utility Shielding 66 Phase Shifting 10 Evasion (%) 73 Targeting Accuracy 5 Recoil Reduction 2 Offensive Hacking 10 Item Schematics ----------------- Hacking Suite | -9/Materials | Scanalyzed Imp. Flight Unit | -9/Materials | Scanalyzed Lgt. Armor Plating | -9/Materials | Scanalyzed Lgt. Nuclear Core | -9/Materials | Scanalyzed Robot Schematics ------------------ None Fabricated ------------ Nothing Alien Tech Used ----------------- Dimensional Node Initializer Achievements -------------- A Powerful Ally? Brute Force Cya! I'm Back, Baby! No Signal Total Silence Challenges ------------ None Game ------ Seed TachyonImprovedArticulator Manual? 0 Play Time 02:37:45 Cumulative 57.2 hours Start 2025.04.21 @ 19:53:41 End 2025.04.26 @ 10:19:25 Sessions 5 Manual Loads 0 Difficulty Rogue Special Mode None Game No. 41 Rogue 37 Adventurer 4 Explorer 0 Win Type - Total 1 Types 0/0/0/1/0/0/0/0/0 Lore% 28 Gallery% 33 Achievement% 31 Wizard Run 0 Options --------- Layout 0 ASCII 0 Keyboard 1 Movement Vi Keybinds 0 Fullscreen 1 Font 24/Crisp Map View 76x50 Zoom Use 0% Tactical HUD 1 Map Filters NONE Filters NONE Steam 1 RUN: df26a75c-7e7a-40a6-860f-7f55111f3dad